bitfinex-derivatives/quotes_BTCF0:USTF0_20241210
["timestamp","ask_amount","ask_price","bid_price","bid_amount"]
[1733872865116,0.051493,97036.0,97035.0,0.0399]
[1733872865311,0.055493,97036.0,97035.0,0.0399]
[1733872867517,0.0515,97024.0,97023.0,1.5]
[1733872867816,0.0515,97024.0,97006.0,0.082409]
[1733872867817,0.051507,97010.0,97006.0,0.082409]
[1733872868019,0.051507,97010.0,97009.0,0.01199864]
[1733872868220,0.051507,97010.0,97009.0,1.50154615]
[1733872868515,0.051505,97015.0,97011.0,0.051506]
[1733872868727,0.051505,97015.0,97009.0,1.50210615]
[1733872868906,0.051505,97015.0,97009.0,1.50154615]
[1733872869314,0.3608,97024.0,97009.0,1.50154615]
[1733872869514,0.3608,97024.0,97022.0,0.0515]
[1733872869914,0.3608,97024.0,97023.0,0.0304]
[1733872870210,0.3608,97024.0,97023.0,0.0314]
[1733872870614,0.10198402,97032.0,97023.0,1.5314]
[1733872870814,0.36132001,97039.0,97023.0,1.5304]
[1733872870815,0.051499,97025.0,97023.0,1.5304]
[1733872871319,0.051499,97025.0,97023.0,1.5]
[1733872871723,0.051499,97025.0,97023.0,1.5515]
[1733872872523,0.002,97032.0,97023.0,1.5]
[1733872872524,0.053496,97032.0,97023.0,1.5]
[1733872872732,0.002,97032.0,97030.0,0.051496]
[1733872873022,0.051495,97034.0,97030.0,0.051496]
[1733872873227,0.051495,97034.0,97031.0,0.0328]
[1733872873424,0.3608,97039.0,97031.0,0.0328]
[1733872873425,0.051495,97033.0,97031.0,0.0328]
[1733872873924,0.051495,97033.0,97031.0,0.0656]
[1733872874623,0.004,97032.0,97031.0,0.0656]
[1733872874820,0.004,97032.0,97031.0,0.001]
[1733872875020,0.051495,97033.0,97031.0,0.001]
[1733872875316,0.054495,97033.0,97031.0,0.001]
[1733872875720,0.3608,97039.0,97031.0,0.001]
[1733872875721,0.002,97032.0,97031.0,0.001]
[1733872876423,0.002,97032.0,97029.0,0.3608]
[1733872876623,0.3608,97030.0,97023.0,1.5]
[1733872876823,0.12310642,97024.0,97015.0,0.06188877]
[1733872877019,0.3608,97029.0,97015.0,0.06188877]
[1733872877020,0.051504,97017.0,97015.0,0.06188877]
[1733872877220,0.051504,97017.0,97016.0,1.5]
[1733872877430,0.051504,97017.0,97016.0,1.8608]
[1733872878131,0.051504,97017.0,97016.0,1.5]
[1733872878319,0.051504,97017.0,97015.0,0.01238477]
[1733872878320,0.051504,97017.0,97015.0,0.002]
[1733872878520,0.12309668,97019.0,97016.0,0.3608]
[1733872878725,0.21535728,97032.0,97016.0,0.3608]
[1733872878726,0.12309668,97021.0,97019.0,0.051502]
[1733872878926,0.12309668,97025.0,97022.0,0.051501]
[1733872879223,0.10198402,97030.0,97020.0,1.5006]
[1733872879224,0.12313705,97024.0,97020.0,1.5006]
[1733872879433,0.051501,97022.0,97020.0,1.5]
[1733872879827,0.17463805,97022.0,97020.0,1.5]
[1733872880033,0.46278402,97030.0,97016.0,0.003]
[1733872880034,0.051503,97017.0,97016.0,0.003]
[1733872880242,0.17465381,97017.0,97016.0,0.003]
[1733872880529,0.412303,97017.0,97016.0,0.001]
[1733872880830,0.18601912,97023.0,97009.0,0.00154615]
[1733872881032,0.051507,97010.0,97009.0,0.00154615]
[1733872881821,0.17470288,97010.0,97009.0,0.00154615]
[1733872882033,0.051507,97010.0,97009.0,0.00154615]
[1733872882334,0.12319024,97011.0,97009.0,0.00154615]
[1733872882632,0.12319024,97011.0,97010.0,0.051507]
[1733872882932,0.12321108,97012.0,97010.0,0.051507]
[1733872883127,0.412301,97021.0,97012.0,0.051506]
[1733872883128,0.12321108,97013.0,97012.0,0.051506]
[1733872883331,0.12321108,97013.0,97012.0,1.551506]
[1733872883531,0.12421108,97017.0,97015.0,0.051504]
[1733872883737,0.12421108,97017.0,97015.0,0.412304]
[1733872884030,0.001,97017.0,97015.0,0.412304]
[1733872884233,0.12421108,97017.0,97015.0,0.412304]
[1733872884638,0.12421108,97017.0,97015.0,0.413304]
[1733872885228,0.052504,97017.0,97015.0,0.3618]
[1733872885733,0.051504,97017.0,97015.0,0.3618]
[1733872886328,0.052504,97017.0,97015.0,0.3618]
[1733872887937,0.052504,97017.0,97015.0,0.001]
[1733872888140,0.052504,97017.0,97015.0,0.3618]
[1733872889237,0.12321108,97016.0,97015.0,0.001]
[1733872889437,0.052504,97017.0,97015.0,0.001]
[1733872890333,0.051505,97014.0,97012.0,1.50056]
[1733872890534,0.051505,97014.0,97012.0,1.68505209]
[1733872891043,0.051505,97014.0,97013.0,0.3608]
[1733872891537,0.051505,97014.0,97012.0,1.552066]
[1733872891735,0.051505,97014.0,97012.0,1.551506]
[1733872892431,0.051505,97014.0,97012.0,1.5]
[1733872892936,0.051505,97014.0,97013.0,0.18514893]
[1733872893139,0.051505,97014.0,97012.0,1.68614893]
[1733872893337,0.051505,97014.0,97012.0,1.501]
[1733872893536,0.051505,97014.0,97012.0,1.50256]
[1733872893733,0.051505,97014.0,97013.0,0.18514893]
[1733872894039,0.051505,97014.0,97012.0,1.502]
[1733872894544,0.051505,97014.0,97012.0,1.501]
[1733872895244,0.051505,97014.0,97012.0,1.502]
[1733872895837,0.051505,97014.0,97013.0,0.001]
[1733872896736,0.051505,97014.0,97013.0,0.18511027]
[1733872897130,0.051505,97014.0,97012.0,1.502]
[1733872897342,0.12343427,97013.0,97012.0,1.553506]
[1733872897531,0.12343427,97013.0,97012.0,1.552506]
[1733872897732,0.12343427,97013.0,97012.0,1.551506]
[1733872898333,0.12343427,97014.0,97012.0,1.551506]
[1733872898529,0.12343427,97015.0,97012.0,1.552506]
[1733872899130,0.12343427,97015.0,97012.0,1.553506]
[1733872899335,0.12343427,97014.0,97012.0,1.553506]
[1733872899529,0.051504,97016.0,97013.0,0.3608]
[1733872899530,0.17493827,97016.0,97013.0,0.3608]
[1733872899731,0.12343427,97015.0,97013.0,0.3608]
[1733872899941,0.12343427,97014.0,97013.0,0.3608]
[1733872900639,0.17493927,97015.0,97013.0,0.3608]
[1733872900831,0.17493927,97015.0,97013.0,0.001]
[1733872901040,0.12343427,97014.0,97013.0,0.001]
[1733872901545,0.17493927,97015.0,97013.0,0.1860096]
[1733872901844,0.17493927,97015.0,97014.0,0.1850096]
[1733872902035,0.051505,97015.0,97013.0,0.001]
[1733872902434,0.051505,97015.0,97012.0,1.552066]
[1733872902435,0.051505,97013.0,97012.0,1.552066]
[1733872902749,0.051505,97013.0,97012.0,1.551506]
[1733872904642,0.051505,97013.0,97012.0,1.552506]
[1733872905137,0.051505,97013.0,97012.0,1.553506]
[1733872905442,0.051505,97013.0,97012.0,0.002]
[1733872905443,0.17495048,97013.0,97012.0,0.002]
[1733872905744,0.051505,97013.0,97012.0,0.002]
[1733872906443,0.10167915,97013.0,97007.0,0.0006]
[1733872906633,0.051511,97002.0,97000.0,0.10009429]
[1733872906944,0.0816934,97001.0,97000.0,0.10009429]
[1733872908238,0.0816934,97001.0,97000.0,0.10609429]
[1733872909341,0.0816934,97001.0,97000.0,0.11009429]
[1733872909739,0.1125934,97001.0,97000.0,0.11009429]
[1733872910140,0.1227214,97001.0,97000.0,0.11009429]
[1733872910345,0.12272802,97001.0,97000.0,0.11009429]
[1733872910643,0.12272802,97001.0,97000.0,0.10409429]
[1733872910842,0.12272802,97001.0,97000.0,0.10809429]
[1733872911336,0.072628,97001.0,97000.0,0.10409429]
[1733872911540,0.072628,97001.0,97000.0,0.10709429]
[1733872913050,0.2266909,97001.0,97000.0,0.10709429]
[1733872913250,0.072628,97001.0,97000.0,0.10709429]
[1733872913945,0.077628,97001.0,97000.0,0.10409429]
[1733872915348,0.077628,97001.0,97000.0,0.10109429]
[1733872917346,0.0675,97001.0,97000.0,0.10109429]
[1733872917543,0.005,97001.0,97000.0,0.10109429]
[1733872917747,0.1281235,97001.0,97000.0,0.10109429]
[1733872918050,0.005,97001.0,97000.0,0.10109429]
[1733872918644,0.005,97001.0,97000.0,0.15260629]
[1733872919648,0.005,97001.0,97000.0,0.10109429]
[1733872919841,0.051511,97002.0,97000.0,0.10009429]
[1733872920049,0.002,97001.0,97000.0,0.10009429]
[1733872920460,0.051511,97002.0,97000.0,0.10009429]
[1733872920648,0.002,97001.0,97000.0,0.10009429]
[1733872921051,0.051511,97002.0,97000.0,0.10009429]
[1733872921245,0.003,97001.0,97000.0,0.10009429]
[1733872923555,0.004,97001.0,97000.0,0.10009429]
[1733872924259,0.051511,97002.0,97000.0,0.10009429]
[1733872924451,0.005,97001.0,97000.0,0.10009429]
[1733872925347,0.051511,97002.0,97000.0,0.10009429]
[1733872925657,0.056511,97002.0,97000.0,0.10009429]
[1733872927151,0.005,97001.0,97000.0,0.10009429]
[1733872927660,0.056511,97002.0,97000.0,0.10009429]
[1733872928159,0.051511,97002.0,97000.0,0.10009429]
[1733872928461,0.005,97001.0,97000.0,0.10009429]
[1733872929960,0.054511,97002.0,97000.0,0.10009429]
[1733872931046,0.005,97001.0,97000.0,0.10009429]
[1733872931859,0.056511,97002.0,97000.0,0.10009429]
[1733872933147,0.051511,97002.0,97000.0,0.10009429]
[1733872933353,0.005,97001.0,97000.0,0.10009429]
[1733872933754,0.051511,97002.0,97000.0,0.10009429]
[1733872934056,0.056511,97002.0,97000.0,0.10009429]
[1733872934457,0.005,97001.0,97000.0,0.10009429]
[1733872935053,0.12835142,97001.0,97000.0,0.10009429]
[1733872935357,0.005,97001.0,97000.0,0.10009429]
[1733872936148,0.056511,97002.0,97000.0,0.10009429]
[1733872936558,0.46240989,97001.0,97000.0,0.10009429]
[1733872936864,0.71397811,97001.0,97000.0,0.10009429]
[1733872937156,0.52880989,97001.0,97000.0,2.9e-07]
[1733872937560,0.051522,96982.0,96981.0,0.01041476]
[1733872937749,0.051528,96971.0,96969.0,0.18515443]
[1733872938265,0.051529,96969.0,96967.0,0.5563308]
[1733872938453,8.813e-05,96968.0,96967.0,0.37117637]
[1733872938859,8.813e-05,96968.0,96967.0,1.87117637]
[1733872939357,8.813e-05,96968.0,96967.0,1.8608]
[1733872940262,8.813e-05,96968.0,96967.0,1.8658]
[1733872941655,8.813e-05,96968.0,96967.0,1.8688]
[1733872943962,8.813e-05,96968.0,96967.0,1.92033]
[1733872945458,0.051518,96989.0,96986.0,0.05152]
[1733872945659,0.051518,96989.0,96988.0,0.3608]
[1733872946052,0.051518,96989.0,96988.0,1.8608]
[1733872946456,0.05161575,96989.0,96988.0,1.8608]
[1733872947055,0.05561575,96989.0,96988.0,1.8608]
[1733872948855,0.05561575,96989.0,96988.0,0.3608]
[1733872949061,0.00409775,96989.0,96988.0,0.3608]
[1733872949265,0.00409775,96989.0,96988.0,1.893]
[1733872950969,0.00409775,96989.0,96988.0,1.894]
[1733872952073,0.00409775,96989.0,96988.0,1.90418929]
[1733872952275,9.775e-05,96989.0,96988.0,1.90418929]
[1733872961166,9.775e-05,96989.0,96988.0,2.0885023]
[1733872961365,9.775e-05,96989.0,96988.0,2.0563023]
[1733872961672,9.775e-05,96989.0,96988.0,1.87198929]
[1733872964070,0.00209775,96989.0,96988.0,1.87198929]
[1733872964475,0.00209775,96989.0,96988.0,1.87098929]
[1733872966187,9.775e-05,96989.0,96988.0,1.87098929]
[1733872966374,9.775e-05,96989.0,96988.0,1.87198929]
[1733872966776,0.00109775,96989.0,96988.0,1.87198929]
[1733872967175,0.00109775,96989.0,96988.0,1.87098929]
[1733872969580,0.00109775,96989.0,96988.0,1.51018929]
[1733872969581,0.00209775,96989.0,96988.0,1.51018929]
[1733872969781,0.00209775,96989.0,96988.0,1.87098929]
[1733872970188,0.00209775,96989.0,96988.0,2.05543024]
[1733872971083,0.00209775,96989.0,96988.0,1.87098929]
[1733872971477,0.00209775,96989.0,96988.0,1.92250829]
[1733872972689,0.00209775,96989.0,96988.0,1.56170829]
[1733872972876,0.00209775,96989.0,96988.0,1.92250829]
[1733872973278,0.00209775,96989.0,96988.0,1.92350829]
[1733872973483,9.775e-05,96989.0,96988.0,1.92350829]
[1733872973689,0.00109775,96989.0,96988.0,1.92350829]
[1733872973892,0.00109775,96989.0,96988.0,2.16942955]
[1733872974079,9.775e-05,96989.0,96988.0,1.92350829]
[1733872974279,0.00209775,96989.0,96988.0,1.92250829]
[1733872975681,9.775e-05,96989.0,96988.0,1.92250829]
[1733872975885,0.00209775,96989.0,96988.0,1.92250829]
[1733872976081,0.00209775,96989.0,96988.0,1.92350829]
[1733872976283,9.775e-05,96989.0,96988.0,1.92350829]
[1733872977285,9.775e-05,96989.0,96988.0,1.92250829]
[1733872977486,0.00109775,96989.0,96988.0,1.92250829]
[1733872979300,0.34632,97013.0,97010.0,0.051507]
[1733872979594,0.34684001,97013.0,97010.0,0.412307]
[1733872979787,0.34632,97013.0,97010.0,0.412307]
[1733872979990,0.34632,97013.0,97010.0,1.912307]
[1733872980197,0.00164673,97011.0,97010.0,1.912307]
[1733872980694,0.00664673,97011.0,97010.0,1.913307]
[1733872981588,0.13015049,97011.0,97010.0,1.913307]
[1733872981795,0.00664673,97011.0,97010.0,1.552507]
[1733872981990,0.00664673,97011.0,97010.0,0.001]
[1733872982186,0.051509,97007.0,97005.0,0.18501561]
[1733872982390,0.05151,97004.0,97003.0,0.54581561]
[1733872982585,0.05151,97004.0,97003.0,0.3608]
[1733872983489,0.20591164,97004.0,97003.0,0.3608]
[1733872984299,0.20891164,97004.0,97003.0,0.3608]
[1733872984797,0.05309257,97004.0,96997.0,0.19529803]
[1733872984994,0.051513,96999.0,96997.0,0.19529803]
[1733872985187,0.051513,96999.0,96984.0,0.33885375]
[1733872985188,0.3608,96998.0,96985.0,0.24665148]
[1733872985391,0.15441791,96991.0,96986.0,0.18507194]
[1733872985590,0.05152,96985.0,96984.0,0.18507194]
[1733872985786,0.05152,96985.0,96983.0,0.18507194]
[1733872986087,0.05152,96985.0,96984.0,0.18507194]
[1733872986295,0.05152,96985.0,96983.0,0.18507194]
[1733872986590,0.051521,96983.0,96982.0,0.54587194]
[1733872987496,0.17499383,96983.0,96982.0,0.54587194]
[1733872988091,0.17499383,96983.0,96982.0,0.3608]
[1733872989801,0.17599383,96983.0,96982.0,0.3608]
[1733872990994,0.051522,96981.0,96980.0,0.185468]
[1733872991199,0.051525,96977.0,96975.0,0.184908]
[1733872991498,0.15441791,96979.0,96966.0,0.184908]
[1733872991792,0.15441791,96979.0,96963.0,0.30845375]
[1733872991793,0.12347283,96970.0,96963.0,0.184908]
[1733872992001,0.051532,96964.0,96963.0,0.184908]
[1733872992201,0.051532,96964.0,96962.0,0.18645488]
[1733872992202,0.14408647,96964.0,96962.0,0.18645488]
[1733872992391,0.14403911,96964.0,96962.0,0.00154688]
[1733872992591,0.14403911,96964.0,96963.0,1.5]
[1733872993495,0.051532,96964.0,96963.0,1.5]
[1733872993695,0.051532,96964.0,96963.0,1.504]
[1733872994095,0.051532,96964.0,96963.0,1.511]
[1733872996096,0.051532,96964.0,96963.0,1.507]
[1733872996303,0.051532,96964.0,96963.0,1.51]
[1733872996506,0.051532,96964.0,96963.0,1.507]
[1733872997002,0.051532,96964.0,96963.0,1.5]
[1733872997301,0.055532,96964.0,96963.0,1.5]
[1733872997695,0.052532,96964.0,96963.0,1.5]
[1733872999201,0.053532,96964.0,96963.0,1.5]
[1733872999701,0.051532,96964.0,96963.0,1.5]
[1733872999901,0.053532,96964.0,96963.0,1.5]
[1733873007004,0.002,96964.0,96963.0,1.5]
[1733873007395,0.002,96964.0,96963.0,1.5636]
[1733873007595,0.002,96964.0,96963.0,1.748508]
[1733873008109,0.002,96964.0,96963.0,1.5636]
[1733873008313,0.002,96964.0,96963.0,1.74806418]
[1733873008612,0.002,96964.0,96963.0,1.5636]
[1733873009110,0.002,96964.0,96963.0,1.79960814]
[1733873009405,0.002,96964.0,96963.0,1.615132]
[1733873013199,0.002,96964.0,96963.0,1.975932]
[1733873013403,0.002,96964.0,96963.0,2.22258348]
[1733873014509,0.002,96964.0,96963.0,1.975932]
[1733873015607,0.002,96964.0,96963.0,1.615132]
[1733873015808,0.002,96964.0,96963.0,1.975932]
[1733873017206,0.14603911,96964.0,96963.0,0.3608]
[1733873017505,0.14603911,96964.0,96956.0,0.18494603]
[1733873017506,0.051535,96957.0,96956.0,0.18494603]
[1733873017705,0.12348112,96958.0,96951.0,0.051538]
[1733873018010,0.051538,96953.0,96951.0,0.051538]
[1733873018609,0.12348112,96955.0,96949.0,0.24656172]
[1733873018806,0.051539,96950.0,96949.0,0.24656172]
[1733873019807,0.051539,96950.0,96949.0,0.29810072]
[1733873020412,0.051539,96950.0,96949.0,0.051539]
[1733873020713,0.12348112,96954.0,96947.0,0.37123724]
[1733873020917,0.051538,96953.0,96952.0,0.051538]
[1733873022513,0.052538,96953.0,96952.0,0.051538]
[1733873023617,0.052538,96953.0,96952.0,1.551538]
[1733873024705,0.052538,96953.0,96952.0,1.68497341]
[1733873025117,0.052538,96953.0,96952.0,1.5]
[1733873027719,0.052538,96953.0,96952.0,1.68493997]
[1733873028221,0.052538,96953.0,96952.0,1.5]
[1733873029821,0.052538,96953.0,96949.0,0.18493333]
[1733873029822,0.051539,96950.0,96949.0,0.18493333]
[1733873030316,0.051539,96950.0,96949.0,1.73647233]
[1733873031115,0.051539,96950.0,96949.0,1.73747233]
[1733873033715,0.051539,96950.0,96949.0,1.552539]
[1733873039326,0.051539,96950.0,96949.0,1.73747233]
[1733873041027,0.051539,96950.0,96949.0,1.68585145]
[1733873041229,0.051539,96950.0,96949.0,1.501]
[1733873041622,0.14410921,96950.0,96949.0,1.501]
[1733873042224,0.051539,96950.0,96949.0,1.501]
[1733873044432,0.17502012,96950.0,96949.0,1.552539]
[1733873045337,0.051539,96950.0,96949.0,1.552539]
[1733873045630,0.0309,96960.0,96949.0,1.552539]
[1733873045631,0.051537,96954.0,96953.0,0.051537]
[1733873046326,0.051537,96954.0,96953.0,0.23656555]
[1733873047525,0.051537,96954.0,96953.0,0.051537]
[1733873047925,0.052537,96954.0,96953.0,0.051537]
[1733873049133,0.20712894,96954.0,96953.0,0.051537]
[1733873051628,0.001,96954.0,96953.0,0.051537]
[1733873051827,0.12466523,96954.0,96953.0,0.051537]
[1733873052131,0.001,96954.0,96953.0,0.10941278]
[1733873052630,0.0937274,96954.0,96953.0,0.41786653]
[1733873052831,0.0927274,96954.0,96953.0,0.41786653]
[1733873053030,0.0927274,96954.0,96953.0,0.42186653]
[1733873053229,0.0927274,96954.0,96953.0,0.11341278]
[1733873053426,0.0927274,96955.0,96954.0,0.051537]
[1733873053621,0.0927274,96955.0,96954.0,0.10941278]
[1733873054430,0.0927274,96956.0,96955.0,0.051536]
[1733873054630,0.0927274,96956.0,96955.0,0.10941178]
[1733873055322,0.0927274,96957.0,96956.0,0.051536]
[1733873055529,0.0927274,96957.0,96956.0,0.47021178]
[1733873056033,0.12366523,96961.0,96958.0,0.051535]
[1733873056034,0.051534,96959.0,96958.0,0.051535]
[1733873057034,0.17519923,96959.0,96958.0,0.051535]
[1733873058133,0.17819923,96959.0,96958.0,0.051535]
[1733873059228,0.17719923,96959.0,96958.0,0.051535]
[1733873060137,0.17719923,96959.0,96958.0,0.412335]
[1733873060529,0.053534,96959.0,96958.0,0.412335]
[1733873061032,0.051534,96959.0,96958.0,0.412335]
[1733873061232,0.17819923,96959.0,96958.0,0.412335]
[1733873062735,0.054534,96959.0,96958.0,0.412335]
[1733873062937,0.054534,96959.0,96958.0,0.3608]
[1733873063242,0.051537,96953.0,96952.0,0.2981827]
[1733873063439,0.051537,96953.0,96952.0,0.051538]
[1733873063739,0.123538,96954.0,96950.0,0.2466447]
[1733873063938,0.051538,96951.0,96949.0,1.75771993]
[1733873064139,0.051538,96951.0,96949.0,1.51051523]
[1733873065128,0.051538,96951.0,96949.0,1.51151523]
[1733873065639,0.051538,96951.0,96949.0,1.51251523]
[1733873066331,0.051538,96951.0,96949.0,1.56405423]
[1733873066839,0.051538,96951.0,96949.0,1.56305423]
[1733873067337,0.051538,96951.0,96949.0,1.80969893]
[1733873067631,0.051538,96951.0,96949.0,1.56305423]
[1733873068235,0.051538,96951.0,96950.0,0.2466447]
[1733873068841,0.051538,96951.0,96949.0,1.80969893]
[1733873069332,0.051538,96951.0,96950.0,0.2476447]
[1733873069538,0.051538,96951.0,96950.0,0.001]
[1733873070433,0.051538,96951.0,96950.0,0.2476447]
[1733873071029,0.051538,96951.0,96950.0,0.6084447]
[1733873071438,0.051538,96951.0,96950.0,0.3618]
[1733873071740,0.051538,96951.0,96950.0,0.3608]
[1733873072528,0.051538,96951.0,96950.0,0.3618]
[1733873078336,0.051538,96951.0,96950.0,0.001]
[1733873078637,0.051538,96951.0,96950.0,0.3618]
[1733873084040,0.175076,96951.0,96950.0,0.3618]
[1733873084738,0.05164114,96951.0,96950.0,0.001]
[1733873085143,0.10175986,96951.0,96950.0,0.001]
[1733873086548,0.1121776,96951.0,96950.0,0.001]
[1733873086942,0.29752551,96951.0,96950.0,0.001]
[1733873087138,0.12153777,96951.0,96950.0,1e-06]
[1733873087444,0.12153777,96951.0,96938.0,0.00011709]
[1733873087445,0.051545,96939.0,96938.0,0.00011709]
[1733873087747,0.42170517,96939.0,96938.0,0.00011709]
[1733873088239,0.47183459,96939.0,96938.0,0.00011709]
[1733873088435,0.42170517,96939.0,96938.0,0.00011709]
[1733873088649,0.47183474,96939.0,96938.0,0.00811709]
[1733873088948,0.47183502,96939.0,96938.0,0.00811709]
[1733873089345,0.57598047,96939.0,96938.0,0.00811709]
[1733873090345,0.42170545,96939.0,96938.0,0.00811709]
[1733873090544,0.42170545,96939.0,96938.0,9e-08]
[1733873090747,0.47183676,96939.0,96938.0,9e-08]
[1733873092350,0.42170545,96939.0,96938.0,9e-08]
[1733873092953,0.412345,96939.0,96938.0,9e-08]
[1733873093346,0.56645278,96939.0,96938.0,9e-08]
[1733873093756,0.46247945,96939.0,96938.0,9e-08]
[1733873094146,0.47296144,96939.0,96938.0,9e-08]
[1733873094748,0.47296144,96939.0,96922.0,1.5]
[1733873095044,0.051553,96923.0,96922.0,1.5]
[1733873096652,0.051553,96923.0,96922.0,1.504]
[1733873096853,0.06088835,96923.0,96922.0,1.504]
[1733873097255,0.06088835,96923.0,96922.0,1.5]
[1733873097458,0.06188835,96923.0,96922.0,1.512]
[1733873098945,0.07239989,96923.0,96922.0,1.512]
[1733873099651,0.06188835,96923.0,96922.0,1.512]
[1733873102262,0.01033535,96923.0,96922.0,1.512]
[1733873102562,0.051545,96939.0,96937.0,0.051546]
[1733873102756,0.051545,96939.0,96938.0,0.4235]
[1733873103454,0.051545,96939.0,96938.0,1.9235]
[1733873104061,0.051545,96939.0,96938.0,1.9245]
[1733873104566,0.051545,96939.0,96938.0,1.9255]
[1733873105158,0.051545,96939.0,96938.0,1.93607574]
[1733873107656,0.09237548,96948.0,96942.0,0.051543]
[1733873107856,0.05154,96949.0,96942.0,0.051543]
[1733873108063,0.00010314,96951.0,96942.0,0.051543]
[1733873108268,0.051542,96944.0,96942.0,0.051543]
[1733873108479,0.00010314,96951.0,96942.0,0.051543]
[1733873108480,0.05309103,96943.0,96942.0,0.051543]
[1733873109377,0.05409103,96943.0,96942.0,0.051543]
[1733873112277,0.00254803,96943.0,96942.0,0.051543]
[1733873113976,0.00254803,96943.0,96942.0,0.052543]
[1733873114777,0.00254803,96943.0,96942.0,0.051543]
[1733873116083,0.00254803,96943.0,96942.0,0.053543]
[1733873116084,0.00154803,96943.0,96942.0,0.053543]
[1733873116680,0.00154803,96943.0,96942.0,0.051543]
[1733873116681,0.00254803,96943.0,96942.0,0.051543]
[1733873117279,0.00154803,96943.0,96942.0,0.051543]
[1733873117887,0.00154803,96943.0,96942.0,0.053543]
[1733873118481,0.05309103,96943.0,96942.0,0.053543]
[1733873118679,0.05309103,96943.0,96942.0,0.002]
[1733873119487,0.05309103,96943.0,96939.0,0.051545]
[1733873119488,0.051544,96940.0,96939.0,0.051545]
[1733873119991,0.051544,96940.0,96939.0,0.23605909]
[1733873120982,0.051544,96940.0,96939.0,0.23705909]
[1733873121191,0.051544,96940.0,96939.0,0.052545]
[1733873121982,0.051544,96940.0,96939.0,0.23708456]
[1733873123383,0.051544,96940.0,96939.0,0.052545]
[1733873123580,0.051544,96940.0,96939.0,0.23711269]
[1733873124581,0.051544,96940.0,96939.0,0.18556769]
[1733873124782,0.051544,96940.0,96939.0,0.001]
[1733873125490,0.17486496,96940.0,96939.0,0.001]
[1733873125888,0.051544,96940.0,96939.0,0.001]
[1733873127091,0.051556,96918.0,96917.0,0.051556]
[1733873127305,0.051556,96918.0,96916.0,0.0316]
[1733873127590,0.051556,96918.0,96917.0,1.5]
[1733873129288,0.051556,96918.0,96917.0,1.505]
[1733873130086,0.052556,96918.0,96917.0,1.514]
[1733873139887,0.052556,96918.0,96917.0,1.565557]
[1733873140092,0.001,96918.0,96917.0,1.565557]
[1733873140499,0.09251994,96940.0,96917.0,1.514]
[1733873140701,0.051547,96935.0,96934.0,0.051547]
[1733873141405,0.051547,96935.0,96934.0,1.551547]
[1733873142902,0.051547,96935.0,96934.0,1.5]
[1733873143102,0.051547,96935.0,96934.0,1.502]
[1733873143995,0.051547,96935.0,96934.0,1.504]
[1733873145705,0.051547,96935.0,96934.0,1.51453984]
[1733873146397,0.14406694,96935.0,96934.0,1.51453984]
[1733873147898,0.051547,96935.0,96934.0,1.56608684]
[1733873148704,0.051547,96935.0,96934.0,1.51453984]
[1733873149003,0.14406694,96935.0,96934.0,1.51453984]
[1733873149404,0.051547,96935.0,96934.0,1.51453984]
[1733873150506,0.14408818,96935.0,96934.0,1.51453984]
[1733873151309,0.051547,96935.0,96934.0,1.51453984]
[1733873161404,0.17499119,96935.0,96934.0,1.51453984]
[1733873163404,0.17499119,96935.0,96934.0,1.6993947]
[1733873163603,0.17499119,96935.0,96934.0,1.51453984]
[1733873163909,0.051547,96935.0,96934.0,1.51453984]
[1733873164309,0.051547,96935.0,96934.0,1.6993947]
[1733873166415,0.051547,96935.0,96934.0,1.51253984]
[1733873166605,0.052547,96935.0,96934.0,1.51253984]
[1733873167009,0.051547,96935.0,96934.0,1.51253984]
[1733873167209,0.053547,96935.0,96934.0,1.51253984]
[1733873168202,0.053547,96935.0,96934.0,1.51053984]
[1733873168408,0.054547,96935.0,96934.0,1.51053984]
[1733873169022,0.053547,96935.0,96934.0,1.51053984]
[1733873169314,0.054547,96935.0,96934.0,1.51053984]
[1733873170210,0.20885223,96935.0,96934.0,1.51053984]
[1733873179424,0.054547,96935.0,96934.0,1.51053984]
[1733873180209,0.20923699,96935.0,96934.0,1.75701299]
[1733873180416,0.20923699,96935.0,96934.0,1.51053984]
[1733873181324,0.20923699,96935.0,96934.0,1.56208684]
[1733873181511,0.003,96935.0,96934.0,1.56208684]
[1733873181713,0.003,96935.0,96934.0,2.16568182]
[1733873182015,0.0927968,96936.0,96935.0,0.051547]
[1733873182221,0.1237363,96948.0,96935.0,0.24279498]
[1733873182415,0.1237363,96948.0,96947.0,0.6588288]
[1733873182817,0.1237363,96949.0,96947.0,1.912341]
[1733873183013,0.1237363,96949.0,96948.0,0.24647736]
[1733873183214,0.051539,96950.0,96949.0,0.051539]
[1733873184218,0.00010314,96951.0,96949.0,0.051539]
[1733873185219,0.00010314,96951.0,96950.0,0.18468027]
[1733873185415,0.00010314,96951.0,96949.0,0.051539]
[1733873185719,0.00010314,96951.0,96950.0,0.24647736]
[1733873186327,0.00010314,96951.0,96949.0,0.30823468]
[1733873186825,0.00010314,96951.0,96950.0,1.5]
[1733873189213,0.00110314,96951.0,96950.0,1.5]
[1733873192322,0.00110314,96951.0,96950.0,1.68437479]
[1733873192523,0.00110314,96951.0,96950.0,1.5]
[1733873192723,0.00110314,96951.0,96950.0,1.68437335]
[1733873193420,0.00110314,96951.0,96950.0,1.5]
[1733873194222,0.00110314,96951.0,96950.0,1.68433192]
[1733873194423,0.00110314,96951.0,96950.0,1.5]
[1733873206024,0.00110314,96951.0,96950.0,1.8608]
[1733873207032,0.096,96967.0,96950.0,1.8608]
[1733873207236,0.1237363,96974.0,96973.0,0.051527]
[1733873207237,0.00052001,96974.0,96973.0,0.051527]
[1733873207438,0.0316,96980.0,96979.0,0.051524]
[1733873207737,0.0316,96980.0,96979.0,1.912324]
[1733873207927,0.00154714,96982.0,96981.0,0.051522]
[1733873208342,0.00164537,96982.0,96981.0,0.051522]
[1733873208632,3.7e-07,96982.0,96981.0,0.051522]
[1733873209026,0.0317,97007.0,96981.0,0.01010987]
[1733873209230,0.0633,97007.0,97005.0,0.05151]